{"text_format":"1","workbook":"xlsx","n_sheets":4,"sheets":["Date intiale","Cost actual","Cost nou","Tarif"],"not_rendered":{"charts":0,"images":0,"macros":1,"external_links":0,"defined_names":0,"comments":2,"pivot_tables":0},"unopened":[],"bounds":{"document_bytes":16777216,"sheet_cells":100000,"rows_first":2000,"rows_last":500,"rows_between":2000,"halvings":0,"cell_chars":16384,"cell_head_chars":4096},"cells_cut":0,"cells_raw":0,"read":"whole","date_system":"1900"}

{"sheet":"Date intiale","index":0,"n_rows":23,"n_cols":6,"rows_kept":23,"cut":false,"hidden":false,"merged":[[0,1,0,2],[0,0,1,0],[0,3,0,4],[18,1,18,2],[0,5,1,5]]}
["Activități administrative","Timp consumat, ore",null,"Schimbare:\"-\" reducere,\"+\" majorare",null,"Comentarii"]
[null,"actual","nou","ore","%"]
["Familiarizarea cu obligația informațională (identificarea cerințelor de ținere a registrului de evidență, clarificarea aspectelor datelor necesare): completează pentru prima dată registrul de evidență",3,3,{"$f":"C3-B3","v":0},{"$f":"D3/B3","v":0}]
["Familiarizarea cu obligația informațională (identificarea cerințelor de ținere a registrului de evidență, clarificarea aspectelor datelor necesare): completează repetat registrul de evidență",0,0,{"$f":"C4-B4","v":0},{"$f":"D4/B4","v":{"$error":"#DIV/0!"}}]
["Colectarea/elaborarea datelor necesare (adaptarea datelor existente, calcularea datelor noi, verificarea datelor)",1,1,{"$f":"C5-B5","v":0},{"$f":"D5/B5","v":0}]
["Completarea registrului de evidență",0.5,0.5,{"$f":"C6-B6","v":0},{"$f":"D6/B6","v":0}]
[null,null,null,{"$f":"C7-B7","v":0},{"$error":"#DIV/0!"}]
[null,null,null,{"$f":"C8-B8","v":0},{"$error":"#DIV/0!"}]
[null,null,null,{"$f":"C9-B9","v":0},{"$f":"D9/B9","v":{"$error":"#DIV/0!"}}]
[null,null,null,{"$f":"C10-B10","v":0},{"$f":"D10/B10","v":{"$error":"#DIV/0!"}}]
[null,null,null,0,{"$error":"#DIV/0!"}]
[null,null,null,0,{"$error":"#DIV/0!"}]
[null,null,null,0,{"$error":"#DIV/0!"}]
[null,null,null,0,{"$error":"#DIV/0!"}]
[null,null,null,0,{"$error":"#DIV/0!"}]
[null,null,null,0,{"$error":"#DIV/0!"}]
[null,null,null,{"$f":"C17-B17","v":0},{"$f":"D17/B17","v":{"$error":"#DIV/0!"}}]
[null,null,null,0,{"$error":"#DIV/0!"}]
["Date privind cantitatea","Cantitate, număr",null,"număr, p.p.","%"]
["Numărul de agenți economici",5000,5000,{"$f":"C20-B20","v":0},{"$f":"D20/B20","v":0}]
["Ponderea agenților economici care utilizează resurse interne pentru completarea registrului de evidență , %",1,1,{"$f":"C21-B21","v":0},0]
["Ponderea agenților economici care utilizează resurse interne pentru completarea registrului de evidență și care au completat registrul de evidență pentru prima dată, %",0.1,0.1,{"$f":"C22-B22","v":0},{"$f":"D22/B22","v":0}]
["Frecvenţa",12,12,0,0]

{"sheet":"Cost actual","index":1,"n_rows":9,"n_cols":13,"rows_kept":9,"cut":false,"hidden":false,"merged":[[2,0,8,0],[2,1,8,1],[2,2,8,2],[8,3,8,11]]}
["Acte normative","Autorităţi implicate","Descrierea obligației informaționale","Grupuri țintă de agenți economici","Timp, ore","Tarif,  lei/oră","Preţ, lei","Achiziţii, lei","Preţ total, lei","Numărul de agenți economici","Frecvenţa","Cantitate, număr pe an","Costuri administrative totale anuale, mii lei"]
[1,2,3,4,5,6,"7=5*6",8,"9=7+8",10,11,"12=10*11","13=9*12/1000"]
["Legea privind reglementarea activităţii A (art.Z)",null,"Registrul de evidență a utilizării produselor “P” pentru desfășurarea activității “A”","completează repetat registrul",{"$f":"'Date intiale'!B4+'Date intiale'!B5+'Date intiale'!B6","v":1.5},{"$f":"Tarif!$B$8","v":64.5},{"$f":"E3*F3","v":96.75},0,{"$f":"G3+H3","v":96.75},{"$f":"'Date intiale'!$B$20*'Date intiale'!$B$21-J4","v":4500},{"$f":"'Date intiale'!$B$23","v":12},{"$f":"J3*K3","v":54000},{"$f":"I3*L3/1000","v":5224.5}]
[null,null,null,"completează pentru prima dată registrul",{"$f":"'Date intiale'!B3+'Date intiale'!B5+'Date intiale'!B6","v":4.5},{"$f":"Tarif!$B$8","v":64.5},290.25,0,290.25,{"$f":"'Date intiale'!$B$20*'Date intiale'!$B$21*'Date intiale'!$B$22","v":500},{"$f":"'Date intiale'!$B$23/'Date intiale'!$B$23","v":1},500,145.125]
[null,null,null,"completează repetat registrul ulterior completării pentru prima dată în anul 2019",{"$f":"'Date intiale'!B4+'Date intiale'!B5+'Date intiale'!B6","v":1.5},{"$f":"Tarif!$B$8","v":64.5},96.75,0,96.75,{"$f":"J4","v":500},{"$f":"IF('Date intiale'!$B$23/2-K4>=0,'Date intiale'!$B$23/2-K4,0)","v":5},2500,241.875]
[null,null,null,null,null,{"$f":"Tarif!$B$8","v":64.5},{"$f":"Tarif!$B$10","v":0},null,0,{"$f":"'Date intiale'!$B$20*(1-'Date intiale'!$B$21)","v":0},{"$f":"'Date intiale'!$B$23","v":12},{"$f":"J6*K6","v":0},0]
[null,null,null,null,null,{"$f":"Tarif!$B$8","v":64.5},0,null,0,null,null,0,0]
[null,null,null,null,null,{"$f":"Tarif!$B$8","v":64.5},0,null,0,null,null,0,0]
[null,null,null,"TOTAL actual",null,null,null,null,null,null,null,null,{"$f":"SUM(M3:M8)","v":5611.5}]

{"sheet":"Cost nou","index":2,"n_rows":12,"n_cols":13,"rows_kept":12,"cut":false,"hidden":false,"merged":[[11,3,11,11],[2,0,8,0],[2,1,8,1],[2,2,8,2],[8,3,8,11],[9,3,9,11],[10,3,10,11]]}
["Acte normative","Autorităţi implicate","Descrierea obligației informaționale","Grupuri țintă de agenți economici","Timp, ore","Tarif,  lei/oră","Preţ, lei","Achiziţii, lei","Preţ total, lei","Numărul de agenți economici","Frecvenţa","Cantitate, număr pe an","Costuri administrative totale anuale, mii lei"]
[1,2,3,4,5,6,"7=5*6",8,"9=7+8",10,11,"12=10*11","13=9*12/1000"]
["Legea privind reglementarea activităţii A (art.Z)",null,"Registrul de evidență a utilizării produselor “P” pentru desfășurarea activității “A”","completează repetat registrul",{"$f":"'Date intiale'!C4+'Date intiale'!C5+'Date intiale'!C6","v":1.5},{"$f":"Tarif!$B$8","v":64.5},{"$f":"E3*F3","v":96.75},0,{"$f":"G3+H3","v":96.75},{"$f":"'Date intiale'!$C$20*'Date intiale'!$C$21-J4","v":4500},{"$f":"'Date intiale'!$C$23","v":12},{"$f":"J3*K3","v":54000},{"$f":"I3*L3/1000","v":5224.5}]
[null,null,null,"completează pentru prima dată registrul",{"$f":"'Date intiale'!C3+'Date intiale'!C5+'Date intiale'!C6","v":4.5},{"$f":"Tarif!$B$8","v":64.5},{"$f":"E4*F4","v":290.25},0,{"$f":"G4+H4","v":290.25},{"$f":"'Date intiale'!$C$20*'Date intiale'!$C$21*'Date intiale'!$C$22","v":500},{"$f":"'Date intiale'!$C$23/'Date intiale'!$C$23","v":1},{"$f":"J4*K4","v":500},{"$f":"I4*L4/1000","v":145.125}]
[null,null,null,"completează repetat registrul ulterior completării pentru prima dată în anul 2019",{"$f":"'Date intiale'!C4+'Date intiale'!C5+'Date intiale'!C6","v":1.5},{"$f":"Tarif!$B$8","v":64.5},{"$f":"E5*F5","v":96.75},0,{"$f":"G5+H5","v":96.75},{"$f":"J4","v":500},{"$f":"IF('Date intiale'!$C$23/2-K4>=0,'Date intiale'!$C$23/2-K4,0)","v":5},{"$f":"J5*K5","v":2500},{"$f":"I5*L5/1000","v":241.875}]
[null,null,null,null,null,{"$f":"Tarif!$B$8","v":64.5},{"$f":"Tarif!$B$10","v":0},null,{"$f":"G6+H6","v":0},{"$f":"'Date intiale'!$C$20*(1-'Date intiale'!$C$21)","v":0},{"$f":"'Date intiale'!$C$23","v":12},{"$f":"J6*K6","v":0},{"$f":"I6*L6/1000","v":0}]
[null,null,null,null,null,{"$f":"Tarif!$B$8","v":64.5},{"$f":"E7*F7","v":0},null,{"$f":"G7+H7","v":0},null,null,{"$f":"J7*K7","v":0},{"$f":"I7*L7/1000","v":0}]
[null,null,null,null,null,{"$f":"Tarif!$B$8","v":64.5},0,null,0,null,null,0,0]
[null,null,null,"TOTAL nou",null,null,null,null,null,null,null,null,{"$f":"SUM(M3:M8)","v":5611.5}]
[null,null,null,{"$f":"'Cost actual'!D9:L9","v":"TOTAL actual"},null,null,null,null,null,null,null,null,{"$f":"'Cost actual'!$M$9","v":5611.5}]
[null,null,null,"Schimbare:\"-\" reducere,\"+\" majorare, mii lei",null,null,null,null,null,null,null,null,{"$f":"M9-M10","v":0}]
[null,null,null,"Schimbare:\"-\" reducere,\"+\" majorare, %",null,null,null,null,null,null,null,null,{"$f":"M11/M10","v":0}]

{"sheet":"Tarif","index":3,"n_rows":10,"n_cols":3,"rows_kept":10,"cut":false,"hidden":false,"merged":[]}
["Denumirea","Valori","Comentarii"]
["Câștigul salarial mediu brut lunar în sectorul real în 2019, lei",7420.4]
["Cota de majorare a câștigului salarial, %",0]
["Contribuții de asigurări sociale de stat obligatorii achitate de către angajator din sectorul privat, %",0.18]
["Primele de asigurare obligatorie de asistență medicală achitate de către angajator, %",4.4999999999999998E-2]
["Cota de cheltuieli generale luată în calcul, %",0.2]
["Ore în mediu pe lună pentru program complet de lucru (HG nr.165/2010 cu privire la cuantumul minim garantat al salariului în sectorul real)",169]
["Tarif, lei/oră",{"$f":"ROUND((((B2*(1+B3)*(1+B4+B5))*(1+B6))/B7),1)","v":64.5}]
[]
["Prețul resurselor externe achitat specialistului extern pentru ținerea registrului de evidență, lei"]